fUST/lending_fUST_20240820
["ID","MTS","AMOUNT","RATE_DAILY","PERIOD"]
[335373367,1724166442861,-1309.08,0.00018904,2]
[335373368,1724166442881,-800.0,0.00018931,2]
[335373369,1724166442904,-1400.0,0.0001897,2]
[335373370,1724166442929,-800.0,0.00018973,2]
[335373371,1724166443079,-2000.0,0.00018985,2]
[335373372,1724166443103,-321.60592,0.00019,8]
[335373373,1724166443126,-1559.0,0.0001907,2]
[335373374,1724166443149,-1400.0,0.00019076,2]
[335373375,1724166443173,-1400.0,0.00019096,2]
[335373376,1724166443194,-500.0,0.00019111,2]
[335373377,1724166443215,-5117.28593988,0.00019126,2]
[335373378,1724166443242,-1400.0,0.00019161,2]
[335373379,1724166443264,-150.603,0.0001917,2]
[335373380,1724166443287,-1415.0,0.0001917,2]
[335373381,1724166443312,-7726.0,0.0001917,2]
[335373382,1724166443335,-500.0,0.00019178,2]
[335373383,1724166443358,-500.0,0.00019178,2]
[335373384,1724166443380,-236.46170231,0.00019178,2]
[335373385,1724166443404,-500.0,0.00019178,2]
[335373387,1724166443434,-978.97,0.00019178,2]
[335373388,1724166443457,-500.0,0.00019178,2]
[335373389,1724166443478,-500.0,0.00019178,2]
[335373390,1724166443501,-500.0,0.00019178,2]
[335373391,1724166443524,-601.44,0.00019178,2]
[335373392,1724166443548,-500.0,0.00019178,2]
[335373393,1724166443573,-677.79,0.00019178,2]
[335373394,1724166443595,-500.0,0.00019178,2]
[335373395,1724166443620,-824.05,0.00019178,2]
[335373396,1724166443644,-500.0,0.00019178,2]
[335373397,1724166443672,-500.0,0.00019178,2]
[335373398,1724166443694,-1998.47,0.00019178,2]
[335373399,1724166443717,-500.0,0.00019178,2]
[335373400,1724166443740,-500.0,0.00019178,2]
[335373401,1724166443763,-1333.55,0.00019178,2]
[335373402,1724166443788,-500.0,0.00019178,2]
[335373403,1724166443810,-500.0,0.00019178,2]
[335373404,1724166443833,-500.0,0.00019178,2]
[335373405,1724166443855,-650.15,0.00019178,2]
[335373406,1724166443878,-726.18,0.00019178,2]
[335373407,1724166443906,-500.0,0.00019178,2]
[335373408,1724166443933,-500.0,0.00019178,2]
[335373409,1724166443958,-3966.33,0.00019178,2]
[335373410,1724166443979,-637.37,0.00019178,2]
[335373411,1724166444002,-1309.08,0.00019178,2]
[335373412,1724166444024,-164.490179,0.00019178,2]
[335373413,1724166444046,-251.0,0.00019178,2]
[335373414,1724166444068,-305.246874,0.00019178,2]
[335373415,1724166444090,-2000.0,0.00019187,2]
[335373416,1724166444112,-800.0,0.00019192,2]
[335373417,1724166444133,-2805.82503214,0.000192,2]
[335373418,1724166444424,-27585.96809924,0.00011731,2]
[335373419,1724166444521,-27892.05241744,0.00011731,2]
[335373420,1724166444542,-2143.02877073,0.00012985,2]
[335373421,1724166444563,-154.66746495,0.00013051,2]
[335373422,1724166444584,-301.56944091,0.00013477,2]
[335373423,1724166444604,-500.0,0.00016438,2]
[335373424,1724166444626,-500.0,0.00016438,2]
[335373425,1724166444647,-500.0,0.00016438,2]
[335373426,1724166444670,-158.59978058,0.00016712,2]
[335373427,1724166444691,-500.0,0.00016712,2]
[335373428,1724166444712,-500.0,0.00016712,2]
[335373429,1724166444734,-500.0,0.00016986,2]
[335373430,1724166444756,-500.0,0.00016986,2]
[335373431,1724166444777,-500.0,0.00016986,2]
[335373432,1724166444806,-500.0,0.0001726,2]
[335373433,1724166444827,-500.0,0.0001726,2]
[335373434,1724166444848,-500.0,0.00017534,2]
[335373435,1724166444868,-500.0,0.00017534,2]
[335373436,1724166444890,-500.0,0.00017808,2]
[335373437,1724166444916,-500.0,0.00017808,2]
[335373438,1724166444939,-500.0,0.00018082,2]
[335373439,1724166444963,-500.0,0.00018082,2]
[335373440,1724166444987,-500.0,0.00018356,2]
[335373441,1724166445010,-500.0,0.00018356,2]
[335373442,1724166445031,-500.0,0.0001863,2]
[335373443,1724166445051,-500.0,0.0001863,2]
[335373444,1724166445072,-280.69003276,0.00018904,2]
[335373445,1724166445093,-500.0,0.00018904,2]
[335373446,1724166445115,-500.0,0.00019178,2]
[335373447,1724166445139,-73379.53496786,0.000192,2]
[335373448,1724166445163,-800.0,0.00019207,2]
[335373449,1724166445184,-1400.0,0.00019224,2]
[335373450,1724166445205,-500.0,0.00019229,2]
[335373451,1724166445230,-800.0,0.0001934,2]
[335373452,1724166445252,-2000.0,0.00019346,2]
[335373453,1724166445275,-800.0,0.00019375,2]
[335373454,1724166445298,-10003.90066576,0.00019381,2]
[335373455,1724166445324,-2000.0,0.00019423,2]
[335373456,1724166445345,-5117.28593988,0.00019432,2]
[335373457,1724166445366,-476.03849561,0.00019448,2]
[335373458,1724166445388,-978.97,0.00019452,2]
[335373459,1724166445412,-500.0,0.00019452,2]
[335373460,1724166445437,-500.0,0.00019452,2]
[335373461,1724166445483,-460.00900199,0.00019452,2]
[335373462,1724166445504,-601.44,0.00019452,2]
[335373463,1724166445524,-500.0,0.00019452,2]
[335373464,1724166445546,-677.79,0.00019452,2]
[335373465,1724166445569,-500.0,0.00019452,2]
[335373466,1724166445590,-824.05,0.00019452,2]
[335373467,1724166445610,-500.0,0.00019452,2]
[335373468,1724166445632,-500.0,0.00019452,2]
[335373469,1724166445655,-1998.47,0.00019452,2]
[335373470,1724166445687,-500.0,0.00019452,2]
[335373471,1724166445711,-500.0,0.00019452,2]
[335373472,1724166445735,-1333.55,0.00019452,2]
[335373473,1724166445759,-500.0,0.00019452,2]
[335373474,1724166445783,-500.0,0.00019452,2]
[335373475,1724166445807,-500.0,0.00019452,2]
[335373476,1724166445830,-650.15,0.00019452,2]
[335373477,1724166445857,-726.18,0.00019452,2]
[335373478,1724166445880,-500.0,0.00019452,2]
[335373479,1724166445904,-500.0,0.00019452,2]
[335373480,1724166445940,-3966.33,0.00019452,2]
[335373481,1724166445964,-637.37,0.00019452,2]
[335373482,1724166445988,-1309.08,0.00019452,2]
[335373483,1724166446010,-500.0,0.00019452,2]
[335373484,1724166446033,-800.0,0.00019466,2]
[335373485,1724166446054,-800.0,0.00019515,2]
[335373486,1724166446076,-155.12080504,0.00019569,2]
[335373487,1724166446099,-2000.0,0.0001959,2]
[335373488,1724166446121,-2000.0,0.00019608,2]
[335373489,1724166446143,-643.1,0.00019621,2]
[335373490,1724166446171,-188.9,0.00019621,2]
[335373491,1724166446192,-800.0,0.00019625,2]
[335373492,1724166446217,-2000.0,0.00019657,2]
[335373493,1724166446238,-153.0,0.00019663,2]
[335373494,1724166446259,-153.0,0.00019663,2]
[335373495,1724166446280,-153.0,0.00019663,2]
[335373496,1724166446302,-153.0,0.00019663,2]
[335373497,1724166446325,-2000.0,0.00019667,2]
[335373498,1724166446346,-153.0,0.00019671,2]
[335373499,1724166446367,-153.0,0.00019671,2]
[335373500,1724166446387,-153.0,0.00019671,2]
[335373501,1724166446412,-153.0,0.00019671,2]
[335373502,1724166446434,-1400.0,0.00019679,2]
[335373503,1724166446456,-153.0,0.0001968,2]
[335373504,1724166446478,-153.0,0.0001968,2]
[335373505,1724166446500,-153.0,0.0001968,2]
[335373506,1724166446523,-153.0,0.0001968,2]
[335373507,1724166446545,-1400.0,0.00019691,2]
[335373508,1724166446569,-5117.28593988,0.00019697,2]
[335373509,1724166446592,-1400.0,0.00019703,2]
[335373510,1724166446615,-1400.0,0.00019721,2]
[335373511,1724166446638,-978.97,0.00019726,2]
[335373512,1724166446662,-500.0,0.00019726,2]
[335373513,1724166446683,-500.0,0.00019726,2]
[335373514,1724166446705,-601.44,0.00019726,2]
[335373515,1724166446726,-500.0,0.00019726,2]
[335373516,1724166446749,-677.79,0.00019726,2]
[335373517,1724166446770,-500.0,0.00019726,2]
[335373518,1724166446792,-824.05,0.00019726,2]
[335373519,1724166446813,-500.0,0.00019726,2]
[335373520,1724166446835,-500.0,0.00019726,2]
[335373521,1724166446857,-1998.47,0.00019726,2]
[335373522,1724166446880,-500.0,0.00019726,2]
[335373523,1724166446904,-644.5,0.00019726,2]
[335373524,1724166446929,-1333.55,0.00019726,2]
[335373525,1724166446950,-500.0,0.00019726,2]
[335373526,1724166446972,-500.0,0.00019726,2]
[335373527,1724166446995,-500.0,0.00019726,2]
[335373528,1724166447018,-650.15,0.00019726,2]
[335373529,1724166447042,-726.18,0.00019726,2]
[335373530,1724166447066,-420.30261911,0.00019726,2]
[335373531,1724166447091,-500.0,0.00019726,2]
[335373532,1724166447115,-3966.33,0.00019726,2]
[335373533,1724166447138,-637.37,0.00019726,2]
[335373534,1724166447165,-1309.08,0.00019726,2]
[335373535,1724166447189,-500.0,0.00019726,2]
[335373536,1724166447212,-5117.28593988,0.00019727,2]
[335373537,1724166447239,-2000.0,0.00019751,2]
[335373538,1724166447263,-1400.0,0.00019778,2]
[335373539,1724166447288,-800.0,0.00019779,2]
[335373540,1724166447315,-2000.0,0.00019792,2]
[335373541,1724166447337,-5870.59,0.000198,2]
[335373542,1724166447360,-800.0,0.00019814,2]
[335373543,1724166447383,-1400.0,0.00019861,2]
[335373544,1724166447407,-2000.0,0.00019876,2]
[335373545,1724166447434,-1400.0,0.00019921,2]
[335373546,1724166447455,-800.0,0.00019957,2]
[335373547,1724166447476,-2000.0,0.00019973,2]
[335373548,1724166447499,-2000.0,0.00019994,2]
[335373549,1724166447523,-300.68179885,0.0002,2]
[335373550,1724166447545,-8842.31671975,0.0002,2]
[335373551,1724166447568,-345.22,0.0002,2]
[335373552,1724166447591,-1584.02368528,0.0002,2]
[335373553,1724166447613,-978.97,0.0002,2]
[335373554,1724166447637,-500.0,0.0002,2]
[335373555,1724166447662,-500.0,0.0002,2]
[335373556,1724166447684,-601.44,0.0002,2]
[335373557,1724166447706,-500.0,0.0002,2]
[335373558,1724166447731,-677.79,0.0002,2]
[335373559,1724166447753,-500.0,0.0002,2]
[335373560,1724166447777,-824.05,0.0002,2]
[335373561,1724166447800,-500.0,0.0002,2]
[335373562,1724166447826,-500.0,0.0002,2]
[335373563,1724166447851,-1998.47,0.0002,2]
[335373564,1724166447876,-500.0,0.0002,2]
[335373565,1724166447900,-1333.55,0.0002,2]
[335373566,1724166447925,-500.0,0.0002,2]
[335373567,1724166447949,-440.02087159,0.0002,2]
[335373568,1724166447973,-500.0,0.0002,2]
[335373569,1724166447997,-650.15,0.0002,2]
[335373570,1724166448020,-726.18,0.0002,2]
[335373571,1724166448045,-500.0,0.0002,2]
[335373572,1724166448069,-3966.33,0.0002,2]
[335373573,1724166448092,-637.37,0.0002,2]
[335373574,1724166448116,-1309.08,0.0002,2]
[335373575,1724166448138,-500.0,0.0002,2]
[335373576,1724166448165,-2000.0,0.00020007,2]
[335373577,1724166448191,-800.0,0.00020032,2]
[335373578,1724166448217,-1400.0,0.00020045,2]
[335373579,1724166448242,-5117.28593988,0.00020081,2]
[335373580,1724166448266,-500.0,0.0002012,2]
[335373581,1724166448289,-800.0,0.00020161,2]
[335373582,1724166448313,-500.0,0.00020169,2]
[335373583,1724166448335,-2000.0,0.0002027,2]
[335373584,1724166448358,-978.97,0.00020273,2]
[335373585,1724166448380,-500.0,0.00020273,2]
[335373586,1724166448403,-500.0,0.00020273,2]
[335373587,1724166448431,-601.44,0.00020273,2]
[335373588,1724166448454,-500.0,0.00020273,2]
[335373589,1724166448478,-677.79,0.00020273,2]
[335373590,1724166448500,-601.2831112,0.00020273,2]
[335373591,1724166448524,-824.05,0.00020273,2]
[335373592,1724166448549,-528.71078586,0.00020273,2]
[335373593,1724166448572,-500.0,0.00020273,2]
[335373594,1724166448595,-1998.47,0.00020273,2]
[335373595,1724166448620,-500.0,0.00020273,2]
[335373596,1724166448647,-1333.55,0.00020273,2]
[335373597,1724166448672,-500.0,0.00020273,2]
[335373598,1724166448695,-500.0,0.00020273,2]
[335373599,1724166448716,-650.15,0.00020273,2]
[335373600,1724166448738,-726.18,0.00020273,2]
[335373601,1724166448760,-500.0,0.00020273,2]
[335373602,1724166448782,-3966.33,0.00020273,2]
[335373603,1724166448804,-637.37,0.00020273,2]
[335373604,1724166448826,-1309.08,0.00020273,2]
[335373605,1724166448850,-500.0,0.00020273,2]
[335373606,1724166448872,-800.0,0.00020295,2]
[335373607,1724166448896,-2000.0,0.00020313,2]
[335373608,1724166448922,-1400.0,0.00020348,2]
[335373609,1724166448944,-1400.0,0.00020373,2]
[335373610,1724166448966,-465.55192478,0.00020421,2]
[335373611,1724166449097,-800.0,0.00020422,2]
[335373612,1724166449118,-978.05340676,0.00020463,2]
[335373613,1724166449139,-2000.0,0.00020482,2]
[335373614,1724166449163,-5117.28593988,0.0002049,2]
[335373615,1724166449184,-800.0,0.00020509,2]
[335373616,1724166449204,-800.0,0.00020516,2]
[335373617,1724166449226,-1400.0,0.00020542,2]
[335373618,1724166449249,-978.97,0.00020547,2]
[335373619,1724166449272,-500.0,0.00020547,2]
[335373620,1724166449294,-500.0,0.00020547,2]
[335373621,1724166449319,-601.44,0.00020547,2]
[335373622,1724166449340,-500.0,0.00020547,2]
[335373623,1724166449365,-677.79,0.00020547,2]
[335373624,1724166449387,-824.05,0.00020547,2]
[335373625,1724166449411,-500.0,0.00020547,2]
[335373626,1724166449443,-1998.47,0.00020547,2]
[335373627,1724166449465,-500.0,0.00020547,2]
[335373628,1724166449486,-1333.55,0.00020547,2]
[335373629,1724166449507,-500.0,0.00020547,2]
[335373630,1724166449528,-500.0,0.00020547,2]
[335373631,1724166449550,-650.15,0.00020547,2]
[335373632,1724166449573,-726.18,0.00020547,2]
[335373633,1724166449594,-500.0,0.00020547,2]
[335373634,1724166449617,-3966.33,0.00020547,2]
[335373635,1724166449639,-637.37,0.00020547,2]
[335373636,1724166449667,-1309.08,0.00020547,2]
[335373637,1724166449688,-500.0,0.00020547,2]
[335373638,1724166449710,-557.477596,0.00020548,2]
[335373639,1724166449732,-643.1,0.00020556,2]
[335373640,1724166449753,-188.9,0.00020556,2]
[335373641,1724166449775,-1400.0,0.00020559,2]
[335373642,1724166449797,-5117.28593988,0.00020596,2]
[335373643,1724166449818,-823.16820639,0.00020627,2]
[335373644,1724166449841,-1400.0,0.00020631,2]
[335373645,1724166449863,-800.0,0.00020672,2]
[335373646,1724166449884,-800.0,0.00020682,2]
[335373647,1724166449907,-694.435858,0.00020707,2]
[335373648,1724166449930,-2174.89840429,0.0002071,2]
[335373649,1724166449951,-600.0,0.00020715,2]
[335373650,1724166449973,-151.0,0.00020731,2]
[335373651,1724166449994,-6479.9676,0.00020731,2]
[335373652,1724166450015,-6479.9676,0.00020731,2]
[335373653,1724166450036,-172.84268473,0.00020748,2]
[335373654,1724166450061,-2000.0,0.00020772,2]
[335373655,1724166450082,-863.1714911,0.00020783,2]
[335373656,1724166450104,-2165.80480596,0.00020797,2]
[335373657,1724166450126,-978.97,0.00020821,2]
[335373658,1724166450147,-500.0,0.00020821,2]
[335373659,1724166450172,-500.0,0.00020821,2]
[335373660,1724166450195,-601.44,0.00020821,2]
[335373661,1724166450217,-500.0,0.00020821,2]
[335373662,1724166450242,-677.79,0.00020821,2]
[335373663,1724166450264,-824.05,0.00020821,2]
[335373664,1724166450290,-321.24852019,0.00020821,2]
[335373665,1724166450313,-1998.47,0.00020821,2]
[335373666,1724166450336,-500.0,0.00020821,2]
[335373667,1724166450357,-1333.55,0.00020821,2]
[335373668,1724166450380,-500.0,0.00020821,2]
[335373669,1724166450403,-500.0,0.00020821,2]
[335373670,1724166450428,-650.15,0.00020821,2]
[335373671,1724166450449,-726.18,0.00020821,2]
[335373672,1724166450470,-500.0,0.00020821,2]
[335373673,1724166450492,-3966.33,0.00020821,2]
[335373674,1724166450513,-637.37,0.00020821,2]
[335373675,1724166450534,-1309.08,0.00020821,2]
[335373676,1724166450557,-2000.0,0.00020823,2]
[335373677,1724166450578,-2000.0,0.00020827,2]
[335373678,1724166450603,-800.0,0.00020829,2]
[335373679,1724166450625,-800.0,0.00020871,2]
[335373680,1724166450648,-2000.0,0.00020879,2]
[335373681,1724166450675,-2092.36,0.000209,31]
[335373682,1724166450698,-2092.36,0.000209,31]
[335373683,1724166450721,-2092.36,0.000209,31]
[335373684,1724166450745,-2092.36,0.000209,31]
[335373685,1724166450768,-2092.36,0.000209,31]
[335373686,1724166450792,-2092.36,0.000209,31]
[335373687,1724166450816,-2092.36,0.000209,31]
[335373688,1724166450840,-2092.36,0.000209,31]
[335373689,1724166450864,-2092.36,0.000209,31]
[335373690,1724166450888,-2092.36,0.000209,31]
[335373691,1724166450911,-2092.36,0.000209,31]
[335373692,1724166450936,-2092.36,0.000209,31]
[335373693,1724166450958,-2092.36,0.000209,31]
[335373694,1724166450981,-2092.36,0.000209,31]
[335373695,1724166451004,-2092.36,0.000209,31]
[335373696,1724166451026,-2092.36,0.000209,31]
[335373697,1724166451047,-5117.28593988,0.00020912,2]
[335373698,1724166451068,-3507.45012855,0.00020927,2]
[335373699,1724166451089,-800.0,0.0002093,2]
[335373700,1724166451110,-1109.78698035,0.00020987,2]
[335373701,1724166451130,-154.89311412,0.00021,2]
[335373702,1724166451151,-126499.41497098,0.00021,2]
[335373703,1724166451172,-170.02363471,0.00021,2]
[335373704,1724166451192,-154.79103211,0.00021,2]
[335373705,1724166451212,-20176.28825676,0.00021,2]
[335373706,1724166451236,-4355.81881125,0.00021,2]
[335373707,1724166451257,-520.8117105,0.00021,2]
[335373708,1724166451277,-992.09924077,0.00021,2]
[335373709,1724166451298,-151.0,0.00021,2]
[335373710,1724166451321,-182.5,0.00021,2]
[335373711,1724166451342,-151.0,0.00021,2]
[335373712,1724166451362,-4382.84436898,0.00021,2]
[335373713,1724166451382,-4707.57048829,0.00021,2]
[335373714,1724166451549,-509.69570697,0.00016438,2]
[335373715,1724166451569,-500.0,0.00016438,2]
[335373716,1724166451590,-500.0,0.00016438,2]
[335373717,1724166451611,-500.0,0.00016712,2]
[335373718,1724166451632,-500.0,0.00020821,2]
[335373719,1724166451652,-10060.53871447,0.00021,2]
[335373720,1724166451674,-151.0,0.00021,2]
[335373721,1724166451694,-3000.0,0.00021,2]
[335373722,1724166451715,-151.0,0.00021,2]
[335373723,1724166451734,-828.80041013,0.00021,2]
[335373724,1724166451753,-155.104913,0.00021,2]
[335373725,1724166451774,-151.0,0.00021,2]
[335373726,1724166451795,-151.0,0.00021,2]
[335373727,1724166451814,-252.771361,0.00021,2]
[335373728,1724166451834,-252.771361,0.00021,2]
[335373729,1724166451854,-151.0,0.00021,2]
[335373730,1724166451874,-151.0,0.00021,2]
[335373731,1724166451895,-151.0,0.00021,2]
[335373732,1724166451919,-3000.0,0.0002101,2]
[335373733,1724166451940,-3000.0,0.0002102,2]
[335373734,1724166451960,-3000.0,0.0002103,2]
[335373735,1724166451981,-3000.0,0.0002104,2]
[335373736,1724166452002,-3000.0,0.0002105,2]
[335373737,1724166452023,-3000.0,0.0002106,2]
[335373738,1724166452044,-3000.0,0.0002107,2]
[335373739,1724166452066,-3000.0,0.0002108,2]
[335373740,1724166452087,-3000.0,0.0002109,2]
[335373741,1724166452107,-978.97,0.00021095,2]
[335373742,1724166452128,-500.0,0.00021095,2]
[335373743,1724166452259,-500.0,0.00021095,2]
[335373744,1724166452288,-601.44,0.00021095,2]
[335373745,1724166452310,-500.0,0.00021095,2]
[335373746,1724166452335,-677.79,0.00021095,2]
[335373747,1724166452356,-824.05,0.00021095,2]
[335373748,1724166452378,-1998.47,0.00021095,2]
[335373749,1724166452401,-500.0,0.00021095,2]
[335373750,1724166452428,-1333.55,0.00021095,2]
[335373751,1724166452450,-151.8217587,0.00021095,2]
[335373752,1724166452474,-500.0,0.00021095,2]
[335373753,1724166452495,-650.15,0.00021095,2]
[335373754,1724166452518,-726.18,0.00021095,2]
[335373755,1724166452541,-432.35365398,0.00021095,2]
[335373756,1724166452563,-3966.33,0.00021095,2]
[335373757,1724166452584,-637.37,0.00021095,2]
[335373758,1724166452608,-1309.08,0.00021095,2]
[335373759,1724166452629,-500.0,0.00021095,2]
[335373760,1724166452652,-3000.0,0.000211,2]
[335373761,1724166452677,-3000.0,0.0002111,2]
[335373762,1724166452698,-3000.0,0.0002112,2]
[335373763,1724166452718,-3447.13241367,0.00021125,120]
[335373764,1724166452739,-4600.481882,0.0002113,2]
[335373765,1724166452760,-150.0,0.00021151,2]
[335373766,1724166452783,-5117.28593988,0.00021367,2]
[335373767,1724166452805,-978.97,0.00021369,2]
[335373768,1724166452828,-500.0,0.00021369,2]
[335373769,1724166452850,-500.0,0.00021369,2]
[335373770,1724166452874,-601.44,0.00021369,2]
[335373771,1724166452901,-500.0,0.00021369,2]
[335373772,1724166452930,-677.79,0.00021369,2]
[335373773,1724166452952,-824.05,0.00021369,2]
[335373774,1724166452974,-1998.47,0.00021369,2]
[335373775,1724166452997,-500.0,0.00021369,2]
[335373776,1724166453021,-1333.55,0.00021369,2]
[335373777,1724166453044,-500.0,0.00021369,2]
[335373778,1724166453068,-650.15,0.00021369,2]
[335373779,1724166453092,-726.18,0.00021369,2]
[335373780,1724166453116,-3966.33,0.00021369,2]
[335373781,1724166453139,-637.37,0.00021369,2]
[335373782,1724166453170,-1309.08,0.00021369,2]
[335373783,1724166453198,-500.0,0.00021369,2]
[335373784,1724166453220,-5117.28593988,0.00021397,2]
[335373785,1724166453244,-643.1,0.00021491,2]
[335373786,1724166453265,-188.9,0.00021491,2]
[335373787,1724166453288,-7712.46483926,0.00021521,2]
[335373788,1724166453311,-1602.82529477,0.00021539,2]
[335373789,1724166453333,-151.20881187,0.00021548,2]
[335373790,1724166453355,-76185.36,0.000216,2]
[335373791,1724166453376,-151.0,0.000216,2]
[335373792,1724166453400,-82.41860242,0.000216,2]
[335373793,1724166453515,-500.0,0.00016438,2]
[335373794,1724166453536,-500.0,0.00016712,2]
[335373795,1724166453557,-500.0,0.00016986,2]
[335373796,1724166453578,-500.0,0.0001726,2]
[335373797,1724166453598,-6397.54899758,0.000216,2]
[335373798,1724166453618,-6479.9676,0.000216,2]
[335373799,1724166453640,-151.0,0.000216,2]
[335373800,1724166453661,-151.0,0.000216,2]
[335373801,1724166453689,-151.0,0.000216,2]
[335373802,1724166453714,-151.0,0.000216,2]
[335373803,1724166453737,-151.0,0.000216,2]
[335373804,1724166453760,-203.728254,0.000216,2]
[335373805,1724166453782,-978.97,0.00021643,2]
[335373806,1724166453813,-500.0,0.00021643,2]
[335373807,1724166453836,-500.0,0.00021643,2]
[335373808,1724166453858,-601.44,0.00021643,2]
[335373809,1724166453880,-339.35715351,0.00021643,2]
[335373810,1724166453907,-677.79,0.00021643,2]
[335373811,1724166453932,-824.05,0.00021643,2]
[335373812,1724166453955,-1998.47,0.00021643,2]
[335373813,1724166453978,-500.0,0.00021643,2]
[335373814,1724166454001,-1333.55,0.00021643,2]
[335373815,1724166454023,-500.0,0.00021643,2]
[335373816,1724166454045,-650.15,0.00021643,2]
[335373817,1724166454066,-726.18,0.00021643,2]
[335373818,1724166454089,-3966.33,0.00021643,2]
[335373819,1724166454110,-637.37,0.00021643,2]
[335373820,1724166454132,-1309.08,0.00021643,2]
[335373821,1724166454154,-500.0,0.00021643,2]
[335373822,1724166454177,-5117.28593999,0.00021726,2]
[335373823,1724166454199,-978.97,0.00021917,2]
[335373824,1724166454221,-500.0,0.00021917,2]
[335373825,1724166454245,-500.0,0.00021917,2]
[335373826,1724166454266,-601.44,0.00021917,2]
[335373827,1724166454286,-1000.0,0.00021917,5]
[335373828,1724166454306,-1000.0,0.00021917,5]
[335373829,1724166454330,-1000.0,0.00021917,5]
[335373830,1724166454350,-1000.0,0.00021917,5]
[335373831,1724166454372,-786.5064596,0.00021917,5]
[335373832,1724166454394,-677.79,0.00021917,2]
[335373833,1724166454419,-824.05,0.00021917,2]
[335373834,1724166454440,-1998.47,0.00021917,2]
[335373835,1724166454462,-500.0,0.00021917,2]
[335373836,1724166454483,-1333.55,0.00021917,2]
[335373837,1724166454505,-500.0,0.00021917,2]
[335373838,1724166454526,-650.15,0.00021917,2]
[335373839,1724166454546,-726.18,0.00021917,2]
[335373840,1724166454569,-3966.33,0.00021917,2]
[335373841,1724166454590,-637.37,0.00021917,2]
[335373842,1724166454611,-1309.08,0.00021917,2]
[335373843,1724166454633,-500.0,0.00021917,2]
[335373844,1724166454653,-151.0,0.00021918,2]
[335373845,1724166454676,-3557.99428053,0.00022,30]
[335373846,1724166454696,-199.0,0.00022,2]
[335373847,1724166454718,-2074.0,0.00022,30]
[335373848,1724166454739,-9000.0,0.00022,14]
[335373849,1724166454760,-302.39527296,0.00022,2]
[335373850,1724166454784,-151.0,0.00022,7]
[335373851,1724166454807,-234.084086,0.00022,7]
[335373852,1724166454830,-252.771361,0.00022,7]
[335373853,1724166454852,-252.771361,0.00022,7]
[335373854,1724166454875,-302.39527296,0.00022,2]
[335373855,1724166454899,-151.0,0.00022,7]
[335373856,1724166454927,-1415.0,0.0002217,2]
[335373857,1724166454949,-7726.0,0.0002217,2]
[335373858,1724166454971,-978.97,0.00022191,2]
[335373859,1724166454994,-500.0,0.00022191,2]
[335373860,1724166455016,-500.0,0.00022191,2]
[335373861,1724166455038,-601.44,0.00022191,2]
[335373862,1724166455061,-677.79,0.00022191,2]
[335373863,1724166455084,-824.05,0.00022191,2]
[335373864,1724166455106,-1998.47,0.00022191,2]
[335373865,1724166455130,-500.0,0.00022191,2]
[335373866,1724166455153,-1333.55,0.00022191,2]
[335373867,1724166455188,-500.0,0.00022191,2]